bitfinex-derivatives/quotes_BTCF0:USTF0_20250828
["timestamp","ask_amount","ask_price","bid_price","bid_amount"]
[1756416552586,0.03533584,112030.0,112020.0,1.29256013]
[1756416552783,0.03533584,112030.0,112020.0,1.61256013]
[1756416552979,0.05814584,112030.0,112020.0,1.64256013]
[1756416553289,0.05814584,112030.0,112020.0,1.91654627]
[1756416553888,0.05814584,112030.0,112020.0,0.20733241]
[1756416554090,0.6007597,112030.0,112020.0,1.05994627]
[1756416555190,0.05814584,112030.0,112020.0,1.60256013]
[1756416555788,0.05814584,112030.0,112020.0,2.41912013]
[1756416559090,0.03533584,112030.0,112020.0,2.41912013]
[1756416561991,0.01909584,112030.0,112020.0,2.41912013]
[1756416562492,0.01909584,112030.0,112020.0,1.02389241]
[1756416562692,0.01909584,112030.0,112020.0,2.43912013]
[1756416564194,0.01909584,112030.0,112020.0,1.62256013]
[1756416564403,0.01909584,112030.0,112020.0,2.43896013]
[1756416572591,0.01909584,112030.0,112020.0,1.02373241]
[1756416572797,0.01909584,112030.0,112020.0,2.45896013]
[1756416573294,0.01909584,112030.0,112020.0,2.10896013]
[1756416573491,0.01909584,112030.0,112020.0,2.45896013]
[1756416581505,0.01909584,112030.0,112020.0,2.10896013]
[1756416581804,0.01909584,112030.0,112020.0,2.42896013]
[1756416582505,0.01909584,112030.0,112020.0,1.02373241]
[1756416582705,0.01909584,112030.0,112020.0,1.02345241]
[1756416583009,0.01909584,112030.0,112020.0,2.45868013]
[1756416588710,0.01909584,112030.0,112020.0,1.02345241]
[1756416588909,0.01909584,112030.0,112020.0,2.44868013]
[1756416592313,0.01909584,112030.0,112020.0,1.02345241]
[1756416592513,0.01909584,112030.0,112020.0,2.41868013]
[1756416594814,0.01909584,112030.0,112020.0,1.02345241]
[1756416595014,0.01909584,112030.0,112020.0,2.42868013]
[1756416602718,0.01909584,112030.0,112020.0,1.02345241]
[1756416602920,0.01909584,112030.0,112020.0,2.45868013]
[1756416603818,0.01909584,112030.0,112020.0,1.64256013]
[1756416604013,0.01909584,112030.0,112020.0,1.28383431]
[1756416604324,0.01909584,112030.0,112020.0,1.87698045]
[1756416604820,0.01909584,112030.0,112020.0,1.01436659]
[1756416605013,0.01909584,112030.0,112020.0,1.90698045]
[1756416606025,0.01909584,112030.0,112020.0,1.09122045]
[1756416606421,0.01909584,112030.0,112020.0,0.74122045]
[1756416609430,0.01909584,112030.0,112020.0,1.09122045]
[1756416612829,0.03471584,112030.0,112020.0,0.19860659]
[1756416613132,0.01909584,112030.0,112020.0,1.05122045]
[1756416617630,0.01909584,112030.0,112020.0,0.19860659]
[1756416617834,0.01909584,112030.0,112020.0,0.74122045]
[1756416618136,0.10834854,112030.0,112020.0,0.74122045]
[1756416618838,0.10834854,112030.0,112020.0,0.19860659]
[1756416619031,0.10834854,112030.0,112020.0,1.09122045]
[1756416622342,0.12396854,112030.0,112020.0,0.19860659]
[1756416622640,0.10834854,112030.0,112020.0,1.28383431]
[1756416622941,0.10834854,112030.0,112020.0,1.61383431]
[1756416625545,0.10834854,112030.0,112020.0,0.19860659]
[1756416625735,0.10834854,112030.0,112020.0,1.62383431]
[1756416632652,0.10834854,112030.0,112020.0,0.19860659]
[1756416632947,0.12396854,112030.0,112020.0,1.61383431]
[1756416633144,0.10834854,112030.0,112020.0,1.61383431]
[1756416635445,0.92362854,112030.0,112020.0,1.61383431]
[1756416636147,0.92362854,112030.0,112020.0,1.07122045]
[1756416637149,0.92362854,112030.0,112020.0,1.61383431]
[1756416638356,0.10834854,112030.0,112020.0,1.61383431]
[1756416638650,0.92362854,112030.0,112020.0,1.61383431]
[1756416640555,0.92362854,112030.0,112020.0,0.19860659]
[1756416640753,0.92362854,112030.0,112020.0,1.62383431]
[1756416641755,0.9055327,112030.0,112020.0,1.62383431]
[1756416642552,0.9218827,112030.0,112020.0,0.19860659]
[1756416642757,0.9453327,112030.0,112020.0,1.60383431]
[1756416643751,0.9453327,112030.0,112020.0,1.63383431]
[1756416644853,0.9218827,112030.0,112020.0,1.63383431]
[1756416645458,0.9453327,112030.0,112020.0,1.63383431]
[1756416646657,0.9453327,112030.0,112020.0,1.63109495]
[1756416647562,0.9453327,112030.0,112020.0,0.19586723]
[1756416647957,0.9453327,112030.0,112020.0,1.63109495]
[1756416648264,0.9453327,112030.0,112020.0,1.08848109]
[1756416650265,0.9453327,112030.0,112020.0,1.63109495]
[1756416652374,0.9453327,112030.0,112020.0,0.19586723]
[1756416652565,0.9453327,112030.0,112020.0,1.61109495]
[1756416652764,0.9453327,112030.0,112020.0,1.06848109]
[1756416653261,0.9453327,112030.0,112020.0,1.61109495]
[1756416660577,0.9450527,112030.0,112020.0,1.61109495]
[1756416661481,0.1300527,112030.0,112020.0,1.61109495]
[1756416661778,0.9215627,112030.0,112020.0,1.63127738]
[1756416662668,0.9215627,112030.0,112020.0,0.21604966]
[1756416662868,0.9442127,112030.0,112020.0,1.30127738]
[1756416663073,0.9442127,112030.0,112020.0,1.64127738]
[1756416668192,0.1292527,112030.0,112020.0,1.64127738]
[1756416668493,0.9441727,112030.0,112020.0,1.64127738]
[1756416668995,0.9441727,112030.0,112020.0,1.62127738]
[1756416670293,0.9441727,112030.0,112020.0,0.21604966]
[1756416670489,0.9441727,112030.0,112020.0,1.30127738]
[1756416670689,0.9441727,112030.0,112020.0,1.64127738]
[1756416672700,0.9441727,112030.0,112020.0,0.21604966]
[1756416672898,0.9441727,112030.0,112020.0,1.65127738]
[1756416675602,0.9441727,112030.0,112020.0,0.21604966]
[1756416675793,0.9441727,112030.0,112020.0,1.61127738]
[1756416677102,0.1292527,112030.0,112020.0,1.61127738]
[1756416677303,0.9440927,112030.0,112020.0,1.61127738]
[1756416682308,0.9440927,112030.0,112020.0,0.21604966]
[1756416682505,0.9440927,112030.0,112020.0,1.65127738]
[1756416685008,0.9440927,112030.0,112020.0,1.30127738]
[1756416685198,0.9440927,112030.0,112020.0,0.21604966]
[1756416685405,0.9440927,112030.0,112020.0,1.61127738]
[1756416689309,0.9440927,112030.0,112020.0,1.30127738]
[1756416689505,0.9440927,112030.0,112020.0,1.65127738]
[1756416690713,0.9440927,112030.0,112020.0,0.21604966]
[1756416691016,0.9440927,112030.0,112020.0,1.65127738]
[1756416692820,0.9440927,112030.0,112020.0,0.56604966]
[1756416693116,0.9440927,112030.0,112020.0,0.21604966]
[1756416693307,0.9440927,112030.0,112020.0,1.61127738]
[1756416693917,0.9440927,112030.0,112020.0,1.30127738]
[1756416694118,1.73670656,112030.0,112020.0,0.07111589]
[1756416694320,1.73670656,112030.0,112010.0,0.56684386]
[1756416694511,0.67123456,112020.0,112010.0,0.58211386]
[1756416694917,0.67123456,112020.0,112010.0,0.67138256]
[1756416695118,1.48583456,112020.0,112010.0,0.67138256]
[1756416695515,1.48583456,112020.0,112010.0,0.67338256]
[1756416696417,0.1286207,112020.0,112010.0,0.67338256]
[1756416696622,1.48583456,112020.0,112010.0,0.67338256]
[1756416698322,1.48683456,112020.0,112010.0,0.67238256]
[1756416700026,1.75063456,112020.0,112010.0,0.67238256]
[1756416700525,1.75063456,112020.0,112010.0,0.58311386]
[1756416701521,1.75063456,112020.0,112010.0,0.01627]
[1756416701721,2.29324842,112020.0,112010.0,0.001]
[1756416701929,1.75063456,112020.0,112010.0,0.001]
[1756416707734,1.72864842,112020.0,112010.0,0.001]
[1756416707925,2.54324842,112020.0,112010.0,0.001]
[1756416711025,1.72864842,112020.0,112010.0,0.001]
[1756416711231,2.54324842,112020.0,112010.0,0.001]
[1756416712028,2.27944842,112020.0,112010.0,0.001]
[1756416713233,2.02944842,112020.0,112010.0,0.001]
[1756416713434,1.21484842,112020.0,112010.0,0.001]
[1756416713633,2.02948842,112020.0,112010.0,0.001]
[1756416714442,1.21484842,112020.0,112010.0,0.001]
[1756416714736,2.02948842,112020.0,112010.0,0.001]
[1756416717637,0.0892766,112000.0,111990.0,0.54261386]
[1756416717836,0.0892766,112000.0,111970.0,0.27025928]
[1756416717837,0.128647,111990.0,111980.0,0.56684386]
[1756416718034,0.67126086,111990.0,111980.0,0.58211386]
[1756416718538,0.68020846,111990.0,111980.0,0.58211386]
[1756416719343,0.67720846,111990.0,111980.0,0.58211386]
[1756416720537,0.67720846,111990.0,111980.0,0.2895]
[1756416720844,1.49188846,111990.0,111980.0,0.2895]
[1756416721239,1.49188846,111990.0,111980.0,0.83211386]
[1756416721539,0.67720846,111990.0,111980.0,0.83211386]
[1756416721839,0.940327,111990.0,111980.0,0.83211386]
[1756416722043,1.48294086,111990.0,111980.0,0.83211386]
[1756416722543,0.66826086,111990.0,111980.0,0.83211386]
[1756416722747,1.48294086,111990.0,111980.0,0.83211386]
[1756416724844,0.125647,111990.0,111980.0,0.83211386]
[1756416725038,1.48298086,111990.0,111980.0,0.83211386]
[1756416725944,1.48298086,111990.0,111980.0,0.2895]
[1756416726145,1.48298086,111990.0,111980.0,0.83211386]
[1756416730048,0.66826086,111990.0,111980.0,0.83211386]
[1756416730250,1.48298086,111990.0,111980.0,0.83211386]
[1756416730450,1.48298086,111990.0,111980.0,0.2895]
[1756416730753,1.48298086,111990.0,111980.0,0.83211386]
[1756416732149,0.66826086,111990.0,111980.0,0.83211386]
[1756416732348,1.48298086,111990.0,111980.0,0.83211386]
[1756416736254,1.48298086,111990.0,111980.0,0.2895]
[1756416736454,1.48298086,111990.0,111980.0,0.83211386]
[1756416737155,0.125647,111990.0,111980.0,0.92140626]
[1756416737453,1.48278086,111990.0,111980.0,0.92140626]
[1756416740353,1.48278086,111990.0,111980.0,0.3787924]
[1756416740555,1.48278086,111990.0,111980.0,0.92140626]
[1756416742957,0.940167,111990.0,111980.0,0.92140626]
[1756416743155,1.48278086,111990.0,111980.0,0.3787924]
[1756416743457,1.48278086,111990.0,111980.0,0.92140626]
[1756416756173,1.48278086,111990.0,111980.0,0.3787924]
[1756416756470,1.48278086,111990.0,111980.0,0.92140626]
[1756416760176,0.940167,111990.0,111980.0,0.92140626]
[1756416760374,1.48278086,111990.0,111980.0,0.92140626]
[1756416762377,0.940167,111990.0,111980.0,0.92140626]
[1756416762675,1.48278086,111990.0,111980.0,0.92140626]
[1756416773074,1.48278086,111990.0,111980.0,0.67140626]
[1756416776082,0.940167,111990.0,111980.0,0.67140626]
[1756416776284,1.48278086,111990.0,111980.0,0.67140626]
[1756416778088,0.940167,111990.0,111980.0,0.67140626]
[1756416778277,1.48254086,111990.0,111980.0,0.67140626]
[1756416779884,1.48254086,111990.0,111980.0,0.1287924]
[1756416780086,1.48254086,111990.0,111980.0,0.67140626]
[1756416781388,1.48254086,111990.0,111980.0,0.1287924]
[1756416781589,1.48254086,111990.0,111980.0,0.67140626]
[1756416783191,0.939927,111990.0,111980.0,0.67140626]
[1756416783391,1.48254086,111990.0,111980.0,0.67140626]
[1756416788392,1.48254086,111990.0,111980.0,0.1287924]
[1756416788789,1.48254086,111990.0,111980.0,0.67140626]
[1756416792102,1.48254086,111990.0,111980.0,0.1287924]
[1756416792303,1.48254086,111990.0,111980.0,0.67140626]
[1756416794002,0.939927,111990.0,111980.0,0.67140626]
[1756416794205,1.48254086,111990.0,111980.0,0.67140626]
[1756416794801,0.939927,111990.0,111980.0,0.67140626]
[1756416795001,1.48254086,111990.0,111980.0,0.67140626]
[1756416800901,1.48254086,111990.0,111980.0,0.1287924]
[1756416801112,1.48254086,111990.0,111980.0,0.67140626]
[1756416802008,1.48254086,111990.0,111980.0,0.1287924]
[1756416802209,1.48254086,111990.0,111980.0,0.67140626]
[1756416803310,0.66806086,111990.0,111980.0,0.67140626]
[1756416803610,1.48234086,111990.0,111980.0,0.67140626]
[1756416807407,0.125447,111990.0,111980.0,0.67140626]
[1756416807715,1.48230086,111990.0,111980.0,0.1287924]
[1756416807916,1.48230086,111990.0,111980.0,0.67140626]
[1756416809517,0.939687,111990.0,111980.0,0.67140626]
[1756416809814,1.48230086,111990.0,111980.0,0.67140626]
[1756416810005,0.939687,111990.0,111980.0,0.67140626]
[1756416810210,1.48230086,111990.0,111980.0,0.67140626]
[1756416810414,1.48230086,111990.0,111980.0,0.1287924]
[1756416810716,1.48230086,111990.0,111980.0,0.67140626]
[1756416812822,0.66806086,111990.0,111980.0,0.67140626]
[1756416813120,1.48226086,111990.0,111980.0,0.67140626]
[1756416815933,0.66806086,111990.0,111980.0,0.67140626]
[1756416816122,1.48226086,111990.0,111980.0,0.67140626]
[1756416816316,0.125447,111990.0,111980.0,0.67140626]
[1756416816621,1.48226086,111990.0,111980.0,0.67140626]
[1756416820126,1.48226086,111990.0,111980.0,0.1287924]
[1756416820329,1.48226086,111990.0,111980.0,0.67140626]
[1756416823220,1.48226086,111990.0,111980.0,0.1287924]
[1756416823424,1.48226086,111990.0,111980.0,0.67140626]
[1756416824032,0.939647,111990.0,111980.0,0.67140626]
[1756416824234,1.48226086,111990.0,111980.0,0.67140626]
[1756416831628,0.1284307,111970.0,111960.0,0.04101]
[1756416831833,1.48516456,111970.0,111960.0,0.58362386]
[1756416832232,1.48516456,111970.0,111960.0,0.67293256]
[1756416832831,0.9425107,111970.0,111960.0,0.67593256]
[1756416833035,1.48512456,111970.0,111960.0,1.00593256]
[1756416833229,0.1284307,111970.0,111960.0,1.00893256]
[1756416833430,0.9425107,111970.0,111960.0,1.00893256]
[1756416833630,1.48512456,111970.0,111960.0,1.00393256]
[1756416834536,1.48512456,111970.0,111960.0,0.67393256]
[1756416842340,1.74892456,111970.0,111960.0,0.67393256]
[1756416845141,1.74892456,111970.0,111960.0,0.1313187]
[1756416845440,1.74892456,111970.0,111960.0,0.67393256]
[1756416845840,1.2063107,111970.0,111960.0,0.67393256]
[1756416846042,1.74892456,111970.0,111960.0,0.67393256]
[1756416858444,1.74892456,111970.0,111960.0,0.1313187]
[1756416858748,1.74892456,111970.0,111960.0,0.67393256]
[1756416867851,1.74892456,111970.0,111960.0,0.1313187]
[1756416868152,1.74892456,111970.0,111960.0,0.67393256]
[1756416869751,0.3922307,111970.0,111960.0,0.67393256]
[1756416869948,0.04042,111980.0,111970.0,0.1046107]
[1756416870149,0.85458,111980.0,111970.0,1.02132456]
[1756416870344,1.39719386,111980.0,111970.0,1.02132456]
[1756416871349,1.39819386,111980.0,111970.0,1.02132456]
[1756416871738,0.58403386,111980.0,111970.0,1.02132456]
[1756416871944,0.85554,111980.0,111970.0,1.02132456]
[1756416872148,1.39815386,111980.0,111970.0,1.02132456]
[1756416872949,0.58403386,111980.0,111970.0,1.02132456]
[1756416873155,0.8555,111980.0,111970.0,1.02132456]
[1756416873455,1.39811386,111980.0,111970.0,1.02132456]
[1756416874856,1.39811386,111980.0,111970.0,0.99132456]
[1756416875557,1.39811386,111980.0,111970.0,1.02132456]
[1756416876055,0.8555,111980.0,111970.0,0.1287107]
[1756416876258,1.39811386,111980.0,111970.0,0.98132456]
[1756416876650,0.8555,111980.0,111970.0,0.98132456]
[1756416877158,0.04142,111980.0,111970.0,0.98132456]
[1756416877360,0.8555,111980.0,111970.0,0.98132456]
[1756416877557,1.39811386,111980.0,111970.0,0.98132456]
[1756416881965,0.8555,111980.0,111970.0,0.98132456]
[1756416882168,1.39811386,111980.0,111970.0,0.98132456]
[1756416882867,0.8555,111980.0,111970.0,0.98132456]
[1756416883167,1.39811386,111980.0,111970.0,0.98132456]
[1756416883767,0.8555,111980.0,111970.0,0.98132456]
[1756416883970,1.39811386,111980.0,111970.0,0.98132456]
[1756416884957,0.8555,111980.0,111970.0,0.98132456]
[1756416885163,1.39811386,111980.0,111970.0,0.98132456]
[1756416886166,0.04142,111980.0,111970.0,0.98132456]
[1756416886471,0.85546,111980.0,111970.0,0.98132456]
[1756416887965,1.39807386,111980.0,111970.0,0.98132456]
[1756416889071,0.85546,111980.0,111970.0,0.98132456]
[1756416889270,1.39807386,111980.0,111970.0,0.98132456]
[1756416889569,0.85546,111980.0,111970.0,0.98132456]
[1756416889769,0.85546,111980.0,111970.0,0.99132456]
[1756416892769,1.39807386,111980.0,111970.0,0.99132456]
[1756416893258,0.85546,111980.0,111970.0,0.99132456]
[1756416893464,1.39807386,111980.0,111970.0,0.99132456]
[1756416895375,0.85546,111980.0,111970.0,0.99132456]
[1756416895871,0.85538,111980.0,111970.0,0.99132456]
[1756416896268,0.04142,111980.0,111970.0,1.82544872]
[1756416896468,0.01698,111980.0,111970.0,1.82544872]
[1756416897175,0.001,111980.0,111970.0,1.82544872]
[1756416897372,0.001,111980.0,111970.0,1.83544872]
[1756416899874,0.63549,111990.0,111980.0,0.1289824]
[1756416900075,0.63549,111990.0,111980.0,0.98159626]
[1756416900578,0.63549,111990.0,111980.0,0.99058754]
[1756416901274,0.63649,111990.0,111980.0,0.99058754]
[1756416902078,0.04045,111990.0,111980.0,0.99058754]
[1756416902278,0.01619,111990.0,111980.0,0.99058754]
[1756416905280,0.001,111990.0,111980.0,2.05446754]
[1756416907680,0.001,111990.0,111980.0,2.05546754]
[1756416907876,1.37922386,112000.0,111980.0,2.03160754]
[1756416908083,0.85223,112000.0,111990.0,0.67095836]
[1756416908381,0.85223,112000.0,111990.0,1.02095836]
[1756416909592,0.85323,112000.0,111990.0,1.02095836]
[1756416911291,0.85323,112000.0,111990.0,0.1283445]
[1756416911487,0.85323,112000.0,111990.0,1.02095836]
[1756416912192,0.8305,112000.0,111990.0,1.02095836]
[1756416912394,0.85323,112000.0,111990.0,1.02095836]
[1756416913593,0.8305,112000.0,111990.0,1.56357222]
[1756416914093,0.01662,112000.0,111990.0,1.56357222]
[1756416914288,0.001,112000.0,111990.0,0.14849461]
[1756416914594,0.001,112000.0,111990.0,2.60964233]
[1756416914896,0.001,112000.0,111990.0,2.62964233]
[1756416917294,0.03835,112010.0,112000.0,0.1283366]
[1756416917495,0.03835,112010.0,112000.0,1.00095046]
[1756416917798,0.01562,112010.0,112000.0,1.00095046]
[1756416918292,0.32015377,112020.0,112010.0,0.0892686]
[1756416918496,0.29742377,112020.0,112010.0,1.02094246]
[1756416919299,0.01562,112020.0,112010.0,1.02094246]
[1756416919594,0.83877,112030.0,112020.0,0.0892606]
[1756416919787,1.39700386,112030.0,112020.0,0.67093446]
[1756416920197,0.85439,112030.0,112020.0,0.1283206]
[1756416920399,0.85439,112030.0,112020.0,1.01093446]
[1756416920899,0.85439,112030.0,112020.0,0.67093446]
[1756416921095,0.85439,112030.0,112020.0,1.02093446]
[1756416921686,0.85439,112030.0,112020.0,0.67093446]
[1756416921892,0.85439,112030.0,112020.0,1.01093446]
[1756416922097,0.85539,112030.0,112020.0,1.01093446]
[1756416922296,0.85539,112030.0,112020.0,1.02093446]
[1756416922799,0.85539,112030.0,112020.0,1.02971886]
[1756416923993,0.85539,112030.0,112020.0,1.00971886]
[1756416924599,0.85539,112030.0,112020.0,0.137105]
[1756416924799,0.85539,112030.0,112020.0,0.98971886]
[1756416925802,0.85539,112030.0,112020.0,0.137105]
[1756416925997,0.85539,112030.0,112020.0,1.02971886]
[1756416926701,0.03935,112030.0,112020.0,1.57233272]
[1756416927203,0.01662,112030.0,112020.0,1.57233272]
[1756416928003,0.001,112030.0,112020.0,1.57233272]
[1756416929691,0.001,112030.0,112020.0,1.25233272]
[1756416929997,0.001,112030.0,112020.0,1.57233272]
[1756416930397,0.001,112030.0,112020.0,1.57333272]
[1756416931204,0.0393,112040.0,112030.0,0.1291629]
[1756416931406,0.0393,112040.0,112030.0,1.00177676]
[1756416932803,0.0393,112040.0,112030.0,1.02200089]
[1756416933604,0.0403,112040.0,112030.0,1.02200089]
[1756416936203,0.0403,112040.0,112030.0,1.04200089]
[1756416937502,0.01757,112040.0,112030.0,1.04200089]
[1756416937804,0.001,112040.0,112030.0,1.04200089]
[1756416938100,0.001,112040.0,112030.0,0.69200089]
[1756416938401,0.04144,112040.0,112030.0,1.03200089]
[1756416938602,0.04144,112040.0,112030.0,1.00200089]
[1756416940502,0.04144,112040.0,112030.0,0.14938703]
[1756416940708,0.58405386,112040.0,112030.0,1.04200089]
[1756416941708,0.04144,112040.0,112030.0,1.04200089]
[1756416943114,0.58405386,112040.0,112030.0,0.14938703]
[1756416943409,0.04144,112040.0,112030.0,1.04200089]
[1756416943609,0.01757,112040.0,112030.0,1.04200089]
[1756416945410,0.01757,112040.0,112030.0,0.14938703]
[1756416945603,0.01757,112040.0,112030.0,1.04200089]
[1756416945803,0.01757,112040.0,112030.0,0.69200089]
[1756416946109,0.01757,112040.0,112030.0,1.04200089]
[1756416946809,0.001,112040.0,112030.0,1.04200089]
[1756416947108,0.01757,112040.0,112030.0,0.14938703]
[1756416947309,0.01757,112040.0,112030.0,1.04200089]
[1756416949614,0.01757,112040.0,112030.0,0.14938703]
[1756416950009,0.01757,112040.0,112030.0,1.04200089]
[1756416951613,0.01757,112040.0,112030.0,0.14938703]
[1756416951817,0.01757,112040.0,112030.0,1.04200089]
[1756416954206,0.01757,112040.0,112030.0,0.69200089]
[1756416954402,0.01757,112040.0,112030.0,1.00200089]
[1756416954612,0.01757,112040.0,112030.0,1.04200089]
[1756416954812,0.56018386,112040.0,112030.0,1.04200089]
[1756416955212,0.56018386,112040.0,112030.0,0.14938703]
[1756416955408,0.01757,112040.0,112030.0,1.04200089]
[1756416955808,0.56018386,112040.0,112030.0,1.04200089]
[1756416956412,0.56018386,112040.0,112030.0,1.01200089]
[1756416957117,0.01757,112040.0,112030.0,1.01200089]
[1756416964021,0.001,112040.0,112030.0,1.01200089]
[1756416965428,0.001,112040.0,112030.0,0.14938703]
[1756416965628,0.001,112040.0,112030.0,1.02200089]
[1756416966233,0.54361386,112040.0,112030.0,1.02200089]
[1756416966426,0.001,112040.0,112030.0,1.02200089]
[1756416966730,0.54361386,112040.0,112030.0,1.04200089]
[1756416967130,0.001,112040.0,112030.0,1.04200089]
[1756416967726,0.01694,112040.0,112030.0,0.14938703]
[1756416967922,0.01694,112040.0,112030.0,1.03200089]
[1756416969333,0.55955386,112040.0,112030.0,1.03200089]
[1756416969831,0.55955386,112040.0,112030.0,0.69200089]
[1756416971534,0.58237386,112040.0,112030.0,0.14938703]
[1756416971727,0.55955386,112040.0,112030.0,0.14938703]
[1756416971927,0.55955386,112040.0,112030.0,0.69200089]
[1756416975236,0.58237386,112040.0,112030.0,0.69200089]
[1756416975628,0.03976,112040.0,112030.0,0.69200089]
[1756416975828,1.39881386,112040.0,112030.0,0.69200089]
[1756416978637,1.39881386,112040.0,112030.0,0.14938703]
[1756416978841,1.39881386,112040.0,112030.0,0.69200089]
[1756416979342,1.39881386,112040.0,112030.0,0.14938703]
[1756416979532,1.39881386,112040.0,112030.0,0.69200089]
[1756416984138,0.58237386,112040.0,112030.0,0.69200089]
[1756416984334,1.39849386,112040.0,112030.0,0.14938703]
[1756416984533,1.39849386,112040.0,112030.0,0.69200089]
[1756416985942,0.58237386,112040.0,112030.0,0.69200089]
[1756416986134,1.39841386,112040.0,112030.0,0.69200089]
[1756416991044,1.39841386,112040.0,112030.0,0.14938703]
[1756416991245,1.39841386,112040.0,112030.0,0.69200089]
[1756416993248,0.58237386,112040.0,112030.0,0.69200089]
[1756416993445,1.39765386,112040.0,112030.0,0.69200089]
[1756416994048,0.85504,112040.0,112030.0,0.69200089]
[1756416994239,1.39765386,112040.0,112030.0,0.69200089]
[1756417000150,0.58237386,112040.0,112030.0,0.69200089]
[1756417000351,1.39709386,112040.0,112030.0,0.69200089]
[1756417003352,1.39709386,112040.0,112030.0,0.14938703]
[1756417003560,1.39709386,112040.0,112030.0,0.69200089]
[1756417003759,0.85448,112040.0,112030.0,0.69200089]
[1756417004056,1.39709386,112040.0,112030.0,0.69200089]
[1756417005561,0.58237386,112040.0,112030.0,0.69200089]
[1756417005859,0.58237386,112040.0,112030.0,0.14938703]
[1756417005860,1.39693386,112040.0,112030.0,0.14938703]
[1756417006056,1.39693386,112040.0,112030.0,0.69200089]
[1756417008659,1.39693386,112040.0,112030.0,0.14938703]
[1756417009049,1.39693386,112040.0,112030.0,0.69200089]
[1756417010554,0.58237386,112040.0,112030.0,0.69200089]
[1756417010762,1.39697386,112040.0,112030.0,0.69200089]
[1756417013956,0.03976,112040.0,112030.0,0.69200089]
[1756417014155,0.03976,112040.0,112030.0,1.04200089]
[1756417014355,0.85396,112040.0,112030.0,1.04200089]
[1756417014562,1.39657386,112040.0,112030.0,1.04200089]
[1756417015163,1.39657386,112040.0,112030.0,0.69200089]
[1756417016565,0.85396,112040.0,112030.0,0.69200089]
[1756417016865,1.39657386,112040.0,112030.0,0.69200089]
[1756417021165,0.03976,112040.0,112030.0,0.69200089]
[1756417021368,0.85444,112040.0,112030.0,0.69200089]
[1756417021559,1.39705386,112040.0,112030.0,0.14938703]
[1756417021760,1.39705386,112040.0,112030.0,0.69200089]
[1756417022260,1.39705386,112040.0,112030.0,0.14938703]
[1756417022455,1.39705386,112040.0,112030.0,0.69200089]
[1756417024465,1.39705386,112040.0,112030.0,0.14938703]
[1756417024663,1.39705386,112040.0,112030.0,0.69200089]
[1756417026068,0.85444,112040.0,112030.0,0.69200089]
[1756417026264,1.39705386,112040.0,112030.0,0.69200089]
[1756417046685,0.85444,112040.0,112030.0,0.69200089]
[1756417046888,1.39705386,112040.0,112030.0,0.69200089]
[1756417054291,1.39705386,112040.0,112030.0,0.67177676]
[1756417062204,1.39705386,112040.0,112030.0,0.1291629]
[1756417062397,1.39705386,112040.0,112030.0,0.67177676]
[1756417072011,1.39705386,112040.0,112030.0,0.1291629]
[1756417072210,1.39705386,112040.0,112030.0,0.67177676]
[1756417076313,1.39705386,112040.0,112030.0,0.1291629]
[1756417076514,1.39705386,112040.0,112030.0,0.67177676]
[1756417079016,1.39625386,112040.0,112030.0,0.67177676]
[1756417079416,1.39625386,112040.0,112030.0,0.1291629]
[1756417079715,1.39625386,112040.0,112030.0,0.67177676]
[1756417080218,1.39625386,112040.0,112030.0,0.1291629]
[1756417080716,1.39625386,112040.0,112030.0,0.67177676]
[1756417080914,0.03923,112030.0,112020.0,0.1961704]
[1756417081119,0.85311,112030.0,112020.0,0.83804576]
[1756417081319,1.39572386,112030.0,112020.0,0.70020934]
[1756417082620,1.65952386,112030.0,112020.0,0.67731934]
[1756417082822,1.65952386,112030.0,112020.0,0.67831934]
[1756417083123,1.66052386,112030.0,112020.0,0.67831934]
[1756417083520,1.66052386,112030.0,112020.0,0.67731934]
[1756417084816,1.66152386,112030.0,112020.0,0.67731934]
[1756417089422,1.11891,112030.0,112020.0,0.67731934]
[1756417089617,1.66152386,112030.0,112020.0,0.67731934]
[1756417089921,1.66152386,112030.0,112020.0,0.13470548]
[1756417090117,1.66152386,112030.0,112020.0,0.67731934]
[1756417091323,1.66152386,112030.0,112020.0,0.13470548]
[1756417091622,1.66152386,112030.0,112020.0,0.67731934]
[1756417092820,1.66152386,112030.0,112020.0,0.70020934]
[1756417096227,1.66152386,112030.0,112020.0,0.15759548]
[1756417096529,1.66152386,112030.0,112020.0,0.70020934]
[1756417098329,0.84764386,112030.0,112020.0,0.70020934]
[1756417098528,1.66140386,112030.0,112020.0,0.70020934]
[1756417098729,0.84764386,112030.0,112020.0,0.70020934]
[1756417098929,1.66140386,112030.0,112020.0,0.70020934]
[1756417099633,0.84764386,112030.0,112020.0,0.70020934]
[1756417100131,1.66136386,112030.0,112020.0,0.70020934]
[1756417107742,1.66136386,112030.0,112020.0,0.15759548]
[1756417107942,1.66136386,112030.0,112020.0,0.70020934]
[1756417109041,1.66128386,112030.0,112020.0,0.70020934]
[1756417110641,1.66128386,112030.0,112020.0,0.67731934]
[1756417110837,1.67948112,112030.0,112020.0,0.04544398]
[1756417111143,1.67948112,112030.0,112020.0,0.66731934]
[1756417111644,1.67944112,112030.0,112020.0,0.12470548]
[1756417111837,0.86584112,112030.0,112020.0,0.66731934]
[1756417112033,1.67944112,112030.0,112020.0,0.66731934]
[1756417113543,1.68821093,112030.0,112020.0,0.66731934]
[1756417116039,1.68821093,112030.0,112020.0,0.69052934]
[1756417119250,1.68821093,112030.0,112020.0,0.14791548]
[1756417119440,1.68821093,112030.0,112020.0,0.69052934]
[1756417121054,1.68821093,112030.0,112020.0,0.66731934]
[1756417121445,1.68821093,112030.0,112020.0,0.69052934]
[1756417121849,0.87461093,112030.0,112020.0,0.69052934]
[1756417122049,1.68809093,112030.0,112020.0,0.69052934]
[1756417125349,1.68809093,112030.0,112020.0,0.14791548]
[1756417125545,1.68809093,112030.0,112020.0,0.69052934]
[1756417125744,1.68809093,112030.0,112020.0,0.66731934]
[1756417126752,1.68809093,112030.0,112020.0,0.69052934]
[1756417127246,0.32322726,112030.0,112020.0,0.69052934]
[1756417127452,0.86584112,112030.0,112020.0,0.69052934]
[1756417127753,1.60868112,112030.0,112020.0,0.69052934]
[1756417129147,1.60868112,112030.0,112020.0,0.14791548]
[1756417129345,1.61749925,112030.0,112020.0,0.14791548]
[1756417129552,1.61749925,112030.0,112020.0,0.69052934]
[1756417130354,1.60868112,112030.0,112020.0,0.69052934]
[1756417139156,1.60868112,112030.0,112020.0,0.14791548]
[1756417139358,1.60868112,112030.0,112020.0,0.69052934]
[1756417144060,1.60868112,112030.0,112020.0,0.14791548]
[1756417144258,1.60868112,112030.0,112020.0,0.66731934]
[1756417146362,1.60868112,112030.0,112020.0,0.69009934]
[1756417147066,1.06606726,112030.0,112020.0,0.69009934]
[1756417147361,1.60868112,112030.0,112020.0,0.69009934]
[1756417150267,1.06606726,112030.0,112020.0,0.69009934]
[1756417150561,1.60868112,112030.0,112020.0,0.69009934]
[1756417151266,0.86584112,112030.0,112020.0,0.69009934]